[Event "*** SCC Grand Prix: Titled Tuesday Blitz"]
[Site "Chess.com"]
[Date "2020.09.29"]
[Round "7"]
[White "PetrolulSah"]
[Black "Forantes"]
[Result "0-1"]
[WhiteElo "2198"]
[BlackElo "2373"]
[TimeControl "180+1"]
[EndTime "11:15:07 PDT"]
[Termination "Forantes won by resignation"]

1. d4 {[%clk 0:02:24.3]} 1... Nf6 {[%clk 0:02:58.8]} 2. g3 {[%clk 0:02:24.3]}
2... g6 {[%clk 0:02:59.3]} 3. Bg2 {[%clk 0:02:24.9]} 3... d5 {[%clk 0:02:59.6]}
4. Nf3 {[%clk 0:02:25.2]} 4... Bg7 {[%clk 0:03:00.1]} 5. O-O {[%clk 0:02:25.6]}
5... O-O {[%clk 0:03:00.8]} 6. c4 {[%clk 0:02:26]} 6... c5 {[%clk 0:02:54.2]} 7.
cxd5 {[%clk 0:02:25.4]} 7... Nxd5 {[%clk 0:02:55.1]} 8. e4 {[%clk 0:02:25]} 8...
Nb4 {[%clk 0:02:42.6]} 9. a3 {[%clk 0:02:22]} 9... N4a6 {[%clk 0:02:36.3]} 10.
d5 {[%clk 0:02:18.4]} 10... Bg4 {[%clk 0:02:23.9]} 11. Nc3 {[%clk 0:02:17.4]}
11... Qc8 {[%clk 0:02:17.6]} 12. Re1 {[%clk 0:02:14]} 12... Rd8 {[%clk 0:02:13]}
13. e5 {[%clk 0:02:11.8]} 13... Nc6 {[%clk 0:02:07.1]} 14. Bf4 {[%clk 0:01:57]}
14... Nd4 {[%clk 0:02:01.6]} 15. Qd3 {[%clk 0:01:49.2]} 15... Bf5 {[%clk
0:01:59.3]} 16. Qd1 {[%clk 0:01:46.4]} 16... Nc2 {[%clk 0:01:58.7]} 17. Nh4
{[%clk 0:01:40.3]} 17... Nxe1 {[%clk 0:01:55.1]} 18. Nxf5 {[%clk 0:01:40.2]}
18... Qxf5 {[%clk 0:01:56]} 19. Qxe1 {[%clk 0:01:39.1]} 19... c4 {[%clk
0:01:33.6]} 20. Be4 {[%clk 0:01:38.4]} 20... Qd7 {[%clk 0:01:28.1]} 21. Qe3
{[%clk 0:01:35.3]} 21... Rac8 {[%clk 0:01:20.2]} 22. e6 {[%clk 0:01:31]} 22...
fxe6 {[%clk 0:01:19]} 23. dxe6 {[%clk 0:01:31.1]} 23... Qd4 {[%clk 0:01:13.1]}
24. Bxb7 {[%clk 0:01:28]} 24... Nc5 {[%clk 0:01:01.9]} 25. Bxc8 {[%clk
0:01:26.6]} 25... Rxc8 {[%clk 0:01:01.1]} 26. Rd1 {[%clk 0:01:05]} 26... Nd3
{[%clk 0:00:57.3]} 27. Bg5 {[%clk 0:01:01.9]} 27... Qxe3 {[%clk 0:00:51.1]} 28.
fxe3 {[%clk 0:01:02]} 28... Nxb2 {[%clk 0:00:50.9]} 29. Rc1 {[%clk 0:01:01.2]}
29... Nd3 {[%clk 0:00:49.3]} 30. Rc2 {[%clk 0:01:01.6]} 30... Ne1 {[%clk
0:00:49.1]} 31. Rd2 {[%clk 0:00:55.1]} 31... Nf3+ {[%clk 0:00:47.9]} 32. Kf2
{[%clk 0:00:55.3]} 32... Nxd2 {[%clk 0:00:46.6]} 33. Ke2 {[%clk 0:00:55.8]}
33... Bxc3 {[%clk 0:00:46]} 34. Bxe7 {[%clk 0:00:56.5]} 34... Ne4 {[%clk
0:00:45.4]} 35. Kf3 {[%clk 0:00:52.2]} 35... Nc5 {[%clk 0:00:42.8]} 36. Bxc5
{[%clk 0:00:51]} 36... Rxc5 {[%clk 0:00:43.7]} 37. e7 {[%clk 0:00:51.1]} 37...
Re5 {[%clk 0:00:43.8]} 38. e8=Q+ {[%clk 0:00:48.1]} 38... Rxe8 {[%clk
0:00:44.2]} 0-1

[Event "*** SCC Grand Prix: Titled Tuesday Blitz"]
[Site "Chess.com"]
[Date "2020.09.29"]
[Round "7"]
[White "M1711"]
[Black "liczner"]
[Result "0-1"]
[WhiteElo "2481"]
[BlackElo "2680"]
[TimeControl "180+1"]
[EndTime "11:15:08 PDT"]
[Termination "liczner won on time"]

1. d4 {[%clk 0:03:00.9]} 1... Nf6 {[%clk 0:02:57.5]} 2. g3 {[%clk 0:02:59]} 2...
g6 {[%clk 0:02:57]} 3. Bg2 {[%clk 0:02:57.4]} 3... Bg7 {[%clk 0:02:56.2]} 4. e4
{[%clk 0:02:57.4]} 4... d6 {[%clk 0:02:53.3]} 5. Ne2 {[%clk 0:02:56.3]} 5... O-O
{[%clk 0:02:49.9]} 6. Nbc3 {[%clk 0:02:54.3]} 6... e5 {[%clk 0:02:48.5]} 7. O-O
{[%clk 0:02:51.7]} 7... Nc6 {[%clk 0:02:45]} 8. h3 {[%clk 0:02:44.4]} 8... exd4
{[%clk 0:02:30.6]} 9. Nxd4 {[%clk 0:02:39.9]} 9... Nxd4 {[%clk 0:02:31.5]} 10.
Qxd4 {[%clk 0:02:40.3]} 10... Re8 {[%clk 0:02:32]} 11. Qd1 {[%clk 0:02:29.9]}
11... Bd7 {[%clk 0:02:16.1]} 12. Bg5 {[%clk 0:02:12.5]} 12... h6 {[%clk
0:02:00.4]} 13. Be3 {[%clk 0:02:10.1]} 13... Bc6 {[%clk 0:01:59.7]} 14. Bd4
{[%clk 0:01:46.5]} 14... Nxe4 {[%clk 0:01:42.1]} 15. Bxg7 {[%clk 0:01:28.5]}
15... Kxg7 {[%clk 0:01:43]} 16. Nxe4 {[%clk 0:01:21.5]} 16... Bxe4 {[%clk
0:01:43.9]} 17. Bxe4 {[%clk 0:01:20.2]} 17... Rxe4 {[%clk 0:01:43.4]} 18. Qd5
{[%clk 0:01:21.1]} 18... Re2 {[%clk 0:01:17.2]} 19. Qxb7 {[%clk 0:00:52.5]}
19... Rb8 {[%clk 0:01:07.6]} 20. Qxa7 {[%clk 0:00:51.5]} 20... Rxb2 {[%clk
0:01:07]} 21. c3 {[%clk 0:00:29.5]} 21... Qf6 {[%clk 0:00:59.7]} 22. a4 {[%clk
0:00:13.1]} 22... Qxc3 {[%clk 0:00:54.4]} 23. Rac1 {[%clk 0:00:12.3]} 23...
Qxg3+ {[%clk 0:00:52.1]} 24. Kh1 {[%clk 0:00:08.4]} 24... Qxh3+ {[%clk
0:00:45.1]} 25. Kg1 {[%clk 0:00:08.5]} 25... Re4 {[%clk 0:00:38.1]} 26. Rc3
{[%clk 0:00:01.3]} 26... Rg4+ {[%clk 0:00:36.5]} 0-1

[Event "*** SCC Grand Prix: Titled Tuesday Blitz"]
[Site "Chess.com"]
[Date "2020.09.29"]
[Round "7"]
[White "pavelalexandru07"]
[Black "Khnykin_Nikolay"]
[Result "0-1"]
[WhiteElo "2216"]
[BlackElo "2098"]
[TimeControl "180+1"]
[EndTime "11:15:08 PDT"]
[Termination "Khnykin_Nikolay won on time"]

1. a3 {[%clk 0:03:00.9]} 1... e6 {[%clk 0:02:58.8]} 2. d4 {[%clk 0:02:53.1]}
2... d5 {[%clk 0:02:57.3]} 3. Nf3 {[%clk 0:02:48.9]} 3... Nf6 {[%clk 0:02:55.5]}
4. Bg5 {[%clk 0:02:44.6]} 4... Be7 {[%clk 0:02:52.5]} 5. e3 {[%clk 0:02:45]}
5... Ne4 {[%clk 0:02:52]} 6. Bxe7 {[%clk 0:02:44.2]} 6... Qxe7 {[%clk
0:02:52.2]} 7. c3 {[%clk 0:02:41.3]} 7... c5 {[%clk 0:02:51.6]} 8. Bd3 {[%clk
0:02:40.5]} 8... f5 {[%clk 0:02:50]} 9. Ne5 {[%clk 0:02:37.4]} 9... Qh4 {[%clk
0:02:42.1]} 10. Bxe4 {[%clk 0:02:28.7]} 10... fxe4 {[%clk 0:02:36.3]} 11. O-O
{[%clk 0:02:26.6]} 11... cxd4 {[%clk 0:02:34.8]} 12. cxd4 {[%clk 0:02:19.4]}
12... O-O {[%clk 0:02:32.7]} 13. Nc3 {[%clk 0:02:17.9]} 13... Nc6 {[%clk
0:02:28.4]} 14. Nxc6 {[%clk 0:02:09.6]} 14... bxc6 {[%clk 0:02:27.1]} 15. Ne2
{[%clk 0:02:08.6]} 15... Ba6 {[%clk 0:02:24.8]} 16. Rc1 {[%clk 0:02:06.4]} 16...
Bb5 {[%clk 0:02:22.3]} 17. Qd2 {[%clk 0:01:58.8]} 17... Qg4 {[%clk 0:02:14.3]}
18. Rfe1 {[%clk 0:01:54.7]} 18... Qf5 {[%clk 0:02:05.2]} 19. Ng3 {[%clk
0:01:45.5]} 19... Qg4 {[%clk 0:02:04.5]} 20. Rc5 {[%clk 0:01:41.3]} 20... h5
{[%clk 0:01:57.7]} 21. b3 {[%clk 0:01:03.4]} 21... h4 {[%clk 0:01:45.2]} 22. h3
{[%clk 0:01:03.6]} 22... Qg5 {[%clk 0:01:41.2]} 23. Nf1 {[%clk 0:00:59.5]} 23...
Rf3 {[%clk 0:01:21]} 24. a4 {[%clk 0:00:26.2]} 24... Bxf1 {[%clk 0:01:03.2]} 25.
Kxf1 {[%clk 0:00:25.8]} 25... Rf6 {[%clk 0:01:00.5]} 26. Rxc6 {[%clk 0:00:25.1]}
26... Raf8 {[%clk 0:00:57.5]} 27. b4 {[%clk 0:00:22.5]} 27... Qg3 {[%clk
0:00:54.6]} 28. Re2 {[%clk 0:00:22.3]} 28... g5 {[%clk 0:00:44.4]} 0-1

[Event "*** SCC Grand Prix: Titled Tuesday Blitz"]
[Site "Chess.com"]
[Date "2020.09.29"]
[Round "7"]
[White "Akmal_Fayzullaev"]
[Black "penguingm1"]
[Result "1-0"]
[WhiteElo "2347"]
[BlackElo "2875"]
[TimeControl "180+1"]
[EndTime "11:15:10 PDT"]
[Termination "Akmal_Fayzullaev won on time"]

1. e4 {[%clk 0:03:00.9]} 1... e5 {[%clk 0:02:53.3]} 2. Nf3 {[%clk 0:03:00.8]}
2... Nc6 {[%clk 0:02:53.5]} 3. Bb5 {[%clk 0:02:58.8]} 3... g6 {[%clk 0:02:53.6]}
4. d4 {[%clk 0:02:53.9]} 4... exd4 {[%clk 0:02:53.8]} 5. Bg5 {[%clk 0:02:54.3]}
5... Be7 {[%clk 0:02:54.1]} 6. Bxe7 {[%clk 0:02:54.1]} 6... Qxe7 {[%clk
0:02:55]} 7. Bxc6 {[%clk 0:02:54.3]} 7... dxc6 {[%clk 0:02:55.9]} 8. Qxd4 {[%clk
0:02:54.4]} 8... Nf6 {[%clk 0:02:56]} 9. Nc3 {[%clk 0:02:54.5]} 9... Bg4 {[%clk
0:02:56.6]} 10. Nd2 {[%clk 0:02:52.5]} 10... c5 {[%clk 0:02:56.8]} 11. Qe3
{[%clk 0:02:52]} 11... O-O-O {[%clk 0:02:57.1]} 12. f3 {[%clk 0:02:52.2]} 12...
Be6 {[%clk 0:02:57.1]} 13. O-O-O {[%clk 0:02:51.8]} 13... b6 {[%clk 0:02:57.3]}
14. Qh6 {[%clk 0:02:42.7]} 14... Nd7 {[%clk 0:02:01.2]} 15. Nf1 {[%clk
0:02:37.6]} 15... Ne5 {[%clk 0:01:14.9]} 16. Ne3 {[%clk 0:02:37.5]} 16... f6
{[%clk 0:01:13.8]} 17. h4 {[%clk 0:02:37.1]} 17... Nc6 {[%clk 0:01:05.2]} 18. h5
{[%clk 0:02:24]} 18... Rxd1+ {[%clk 0:00:24.1]} 19. Rxd1 {[%clk 0:02:24.9]}
19... Rd8 {[%clk 0:00:20.6]} 20. hxg6 {[%clk 0:02:19.8]} 20... hxg6 {[%clk
0:00:18.4]} 21. Qxg6 {[%clk 0:02:10.7]} 21... Rg8 {[%clk 0:00:17.9]} 22. Qh6
{[%clk 0:02:10.3]} 22... Qf7 {[%clk 0:00:14.9]} 23. b3 {[%clk 0:02:05.8]} 23...
Nd4 {[%clk 0:00:13.8]} 24. Qf4 {[%clk 0:02:04.7]} 24... Kb7 {[%clk 0:00:13.6]}
25. Kb2 {[%clk 0:02:00.2]} 25... a5 {[%clk 0:00:12.2]} 26. Rh1 {[%clk
0:01:54.4]} 26... Rf8 {[%clk 0:00:11.3]} 27. Rh6 {[%clk 0:01:49.7]} 27... Qg7
{[%clk 0:00:06.5]} 28. Qh2 {[%clk 0:01:42.2]} 28... Bg8 {[%clk 0:00:06.5]} 29.
Nf5 {[%clk 0:01:32]} 29... Qd7 {[%clk 0:00:05.5]} 30. Qf4 {[%clk 0:01:26.3]}
30... Ne6 {[%clk 0:00:04.9]} 31. Qe3 {[%clk 0:01:22.7]} 31... c4 {[%clk
0:00:05.2]} 32. Nd5 {[%clk 0:01:18.9]} 32... cxb3 {[%clk 0:00:04.7]} 33. axb3
{[%clk 0:01:17]} 33... Qd8 {[%clk 0:00:04.9]} 34. Qc3 {[%clk 0:01:08.8]} 34...
Nc5 {[%clk 0:00:05.5]} 35. Nxf6 {[%clk 0:01:04.5]} 35... Be6 {[%clk 0:00:03.7]}
36. Qd4 {[%clk 0:01:00.3]} 36... Qe7 {[%clk 0:00:01.6]} 37. Nxe7 {[%clk
0:01:00.2]} 1-0

[Event "*** SCC Grand Prix: Titled Tuesday Blitz"]
[Site "Chess.com"]
[Date "2020.09.29"]
[Round "7"]
[White "BogdanDeac"]
[Black "Dr-Bassem"]
[Result "0-1"]
[WhiteElo "2889"]
[BlackElo "2783"]
[TimeControl "180+1"]
[EndTime "11:15:11 PDT"]
[Termination "Dr-Bassem won on time"]

1. e4 {[%clk 0:03:00.9]} 1... e5 {[%clk 0:02:58.9]} 2. Nf3 {[%clk 0:03:01]} 2...
Nc6 {[%clk 0:02:59.6]} 3. Bb5 {[%clk 0:03:01.2]} 3... a6 {[%clk 0:03:00]} 4. Ba4
{[%clk 0:03:01.5]} 4... Nf6 {[%clk 0:03:00.6]} 5. O-O {[%clk 0:03:02]} 5... Be7
{[%clk 0:03:01.1]} 6. Re1 {[%clk 0:03:02.2]} 6... b5 {[%clk 0:03:01.3]} 7. Bb3
{[%clk 0:03:02.5]} 7... d6 {[%clk 0:03:02.2]} 8. c3 {[%clk 0:03:02.8]} 8... O-O
{[%clk 0:03:01.8]} 9. h3 {[%clk 0:03:03.5]} 9... Nb8 {[%clk 0:03:01.7]} 10. d4
{[%clk 0:03:03.3]} 10... Nbd7 {[%clk 0:03:02.2]} 11. c4 {[%clk 0:03:03.6]} 11...
c6 {[%clk 0:02:59.9]} 12. Nc3 {[%clk 0:03:03.8]} 12... b4 {[%clk 0:02:59.2]} 13.
Ne2 {[%clk 0:03:03.8]} 13... Nxe4 {[%clk 0:02:36.3]} 14. Qc2 {[%clk 0:03:03.2]}
14... f5 {[%clk 0:02:35.8]} 15. c5+ {[%clk 0:02:57.3]} 15... d5 {[%clk
0:02:34.8]} 16. Be3 {[%clk 0:02:57.3]} 16... Kh8 {[%clk 0:02:29.8]} 17. Nxe5
{[%clk 0:02:54.8]} 17... Nxe5 {[%clk 0:02:25.5]} 18. dxe5 {[%clk 0:02:54.9]}
18... Bh4 {[%clk 0:02:20.5]} 19. g3 {[%clk 0:02:28.5]} 19... Bg5 {[%clk
0:02:20.4]} 20. f4 {[%clk 0:02:00.4]} 20... Be7 {[%clk 0:02:15.7]} 21. Rac1
{[%clk 0:01:10.2]} 21... Qe8 {[%clk 0:02:09.4]} 22. Kh2 {[%clk 0:00:59.7]} 22...
Qh5 {[%clk 0:01:58.9]} 23. Nd4 {[%clk 0:00:54.5]} 23... Bd7 {[%clk 0:01:52.1]}
24. Qe2 {[%clk 0:00:14.8]} 24... Qh6 {[%clk 0:01:42.5]} 25. Nf3 {[%clk
0:00:08.8]} 25... Be8 {[%clk 0:01:27.5]} 26. Qg2 {[%clk 0:00:04.6]} 26... Bh5
{[%clk 0:01:27]} 27. Bc2 {[%clk 0:00:03.1]} 27... Rae8 {[%clk 0:01:14.5]} 28.
Bd3 {[%clk 0:00:02.8]} 28... Bd8 {[%clk 0:01:07.9]} 29. Bd4 {[%clk 0:00:02.4]}
29... Re6 {[%clk 0:01:06.6]} 30. h4 {[%clk 0:00:02.5]} 30... Bxf3 {[%clk
0:00:58.4]} 31. Qxf3 {[%clk 0:00:02.7]} 31... Nxg3 {[%clk 0:00:50.7]} 32. Qxg3
{[%clk 0:00:02]} 32... Bxh4 {[%clk 0:00:49.6]} 0-1

[Event "*** SCC Grand Prix: Titled Tuesday Blitz"]
[Site "Chess.com"]
[Date "2020.09.29"]
[Round "7"]
[White "XDPS"]
[Black "Barys1974"]
[Result "0-1"]
[WhiteElo "2750"]
[BlackElo "2639"]
[TimeControl "180+1"]
[EndTime "11:15:16 PDT"]
[Termination "Barys1974 won on time"]

1. d4 {[%clk 0:03:00.9]} 1... Nf6 {[%clk 0:02:59.3]} 2. c4 {[%clk 0:02:56.6]}
2... e6 {[%clk 0:02:59.1]} 3. Nc3 {[%clk 0:02:56.5]} 3... Bb4 {[%clk 0:02:58.6]}
4. e3 {[%clk 0:02:56.7]} 4... O-O {[%clk 0:02:57.6]} 5. Bd3 {[%clk 0:02:57.3]}
5... d5 {[%clk 0:02:57.1]} 6. Nf3 {[%clk 0:02:57.7]} 6... dxc4 {[%clk
0:02:56.1]} 7. Bxc4 {[%clk 0:02:57.6]} 7... c5 {[%clk 0:02:56]} 8. O-O {[%clk
0:02:57.9]} 8... Nc6 {[%clk 0:02:55.1]} 9. a3 {[%clk 0:02:51.6]} 9... Ba5 {[%clk
0:02:54.7]} 10. Nb5 {[%clk 0:02:51.7]} 10... a6 {[%clk 0:02:43.2]} 11. Nc3
{[%clk 0:02:49.6]} 11... b5 {[%clk 0:02:41]} 12. Ba2 {[%clk 0:02:49.5]} 12...
cxd4 {[%clk 0:02:36.1]} 13. exd4 {[%clk 0:02:48.6]} 13... Bb7 {[%clk 0:02:30.7]}
14. Bg5 {[%clk 0:02:47.4]} 14... Ne7 {[%clk 0:02:24.6]} 15. Rc1 {[%clk
0:02:27.1]} 15... Nf5 {[%clk 0:02:00.1]} 16. d5 {[%clk 0:01:51.9]} 16... Bxc3
{[%clk 0:01:53.7]} 17. Rxc3 {[%clk 0:01:51.9]} 17... Bxd5 {[%clk 0:01:51.8]} 18.
Bxf6 {[%clk 0:01:48.4]} 18... Qxf6 {[%clk 0:01:48]} 19. Bxd5 {[%clk 0:01:48.7]}
19... Rad8 {[%clk 0:01:45.1]} 20. Rd3 {[%clk 0:01:48.9]} 20... exd5 {[%clk
0:01:32.2]} 21. Rxd5 {[%clk 0:01:49.8]} 21... Rxd5 {[%clk 0:01:32.3]} 22. Qxd5
{[%clk 0:01:50.7]} 22... Rd8 {[%clk 0:01:32.4]} 23. Qe4 {[%clk 0:01:50.7]} 23...
g6 {[%clk 0:01:26.4]} 24. Rb1 {[%clk 0:01:39.5]} 24... h5 {[%clk 0:01:19.6]} 25.
h3 {[%clk 0:01:38.8]} 25... Nd4 {[%clk 0:01:17.1]} 26. Ne5 {[%clk 0:01:29.7]}
26... Qf5 {[%clk 0:00:56.9]} 27. Qxf5 {[%clk 0:00:56.7]} 27... Nxf5 {[%clk
0:00:56.1]} 28. Rc1 {[%clk 0:00:57.2]} 28... Rd5 {[%clk 0:00:48.2]} 29. Nf3
{[%clk 0:00:49]} 29... Nd4 {[%clk 0:00:44.9]} 30. Rc8+ {[%clk 0:00:45.4]} 30...
Kg7 {[%clk 0:00:43.4]} 31. Rc6 {[%clk 0:00:34]} 31... Nxc6 {[%clk 0:00:42.7]}
0-1

[Event "*** SCC Grand Prix: Titled Tuesday Blitz"]
[Site "Chess.com"]
[Date "2020.09.29"]
[Round "7"]
[White "Godzillator"]
[Black "Oscar-Luna"]
[Result "1-0"]
[WhiteElo "2333"]
[BlackElo "2146"]
[TimeControl "180+1"]
[EndTime "11:15:17 PDT"]
[Termination "Godzillator won on time"]

1. d4 {[%clk 0:03:00.9]} 1... Nf6 {[%clk 0:02:57.1]} 2. c4 {[%clk 0:03:01.3]}
2... e5 {[%clk 0:02:51.5]} 3. dxe5 {[%clk 0:03:00.8]} 3... Ne4 {[%clk
0:02:50.9]} 4. Nf3 {[%clk 0:03:00.1]} 4... d6 {[%clk 0:02:45.3]} 5. exd6 {[%clk
0:02:59.2]} 5... Bxd6 {[%clk 0:02:44.6]} 6. Nbd2 {[%clk 0:02:58.3]} 6... Nc5
{[%clk 0:02:43.6]} 7. a3 {[%clk 0:02:53.3]} 7... Qf6 {[%clk 0:02:33.9]} 8. e3
{[%clk 0:02:47.1]} 8... Nc6 {[%clk 0:02:26.3]} 9. Ra2 {[%clk 0:02:40.5]} 9... a5
{[%clk 0:02:24.1]} 10. b3 {[%clk 0:02:38.6]} 10... Bf5 {[%clk 0:02:16.3]} 11.
Bb2 {[%clk 0:02:38.2]} 11... Qh6 {[%clk 0:02:04.6]} 12. Nd4 {[%clk 0:02:36.2]}
12... Bd3 {[%clk 0:01:33.9]} 13. Nxc6 {[%clk 0:02:29.8]} 13... bxc6 {[%clk
0:01:24.2]} 14. Bd4 {[%clk 0:02:24.6]} 14... Bxf1 {[%clk 0:01:17.6]} 15. Kxf1
{[%clk 0:02:24.8]} 15... Ne6 {[%clk 0:01:12.3]} 16. Bc3 {[%clk 0:02:20.4]} 16...
O-O {[%clk 0:01:08.2]} 17. Ne4 {[%clk 0:02:19.9]} 17... Be7 {[%clk 0:00:55.9]}
18. Qf3 {[%clk 0:02:10.4]} 18... Rad8 {[%clk 0:00:49.9]} 19. Bxa5 {[%clk
0:02:00.6]} 19... f5 {[%clk 0:00:44.3]} 20. Nc3 {[%clk 0:01:51.4]} 20... Ng5
{[%clk 0:00:44.5]} 21. Qe2 {[%clk 0:01:45.8]} 21... Bf6 {[%clk 0:00:24.1]} 22.
Rc2 {[%clk 0:01:37.5]} 22... Rd7 {[%clk 0:00:20.8]} 23. h4 {[%clk 0:01:29.7]}
23... Rfd8 {[%clk 0:00:19.9]} 24. g3 {[%clk 0:01:24.9]} 24... Bxc3 {[%clk
0:00:17.2]} 25. Bxc3 {[%clk 0:01:23.5]} 25... Ne4 {[%clk 0:00:13.8]} 26. Kg2
{[%clk 0:01:20]} 26... c5 {[%clk 0:00:11.5]} 27. b4 {[%clk 0:01:09.6]} 27... Qc6
{[%clk 0:00:09.2]} 28. b5 {[%clk 0:01:07.6]} 28... Qa8 {[%clk 0:00:08.5]} 29.
Qf3 {[%clk 0:01:03.5]} 29... Qxa3 {[%clk 0:00:08.4]} 30. Be5 {[%clk 0:00:55.5]}
30... g6 {[%clk 0:00:06.3]} 31. Ra1 {[%clk 0:00:51.2]} 31... Qb3 {[%clk
0:00:04.6]} 32. Qe2 {[%clk 0:00:46.5]} 32... Rd3 {[%clk 0:00:01.5]} 33. Bxc7
{[%clk 0:00:42.1]} 33... R8d7 {[%clk 0:00:01.5]} 34. b6 {[%clk 0:00:41.8]} 1-0

[Event "*** SCC Grand Prix: Titled Tuesday Blitz"]
[Site "Chess.com"]
[Date "2020.09.29"]
[Round "7"]
[White "Kotofeyca"]
[Black "ehrenfeld"]
[Result "0-1"]
[WhiteElo "2343"]
[BlackElo "2522"]
[TimeControl "180+1"]
[EndTime "11:15:19 PDT"]
[Termination "ehrenfeld won by resignation"]

1. d4 {[%clk 0:03:00.9]} 1... Nf6 {[%clk 0:02:58.9]} 2. c4 {[%clk 0:03:00.9]}
2... e6 {[%clk 0:02:59]} 3. Nf3 {[%clk 0:03:00.9]} 3... Bb4+ {[%clk 0:02:58.7]}
4. Nbd2 {[%clk 0:03:00.3]} 4... d6 {[%clk 0:02:58]} 5. a3 {[%clk 0:03:00]} 5...
Bxd2+ {[%clk 0:02:57.4]} 6. Bxd2 {[%clk 0:03:00.9]} 6... Nbd7 {[%clk 0:02:57.2]}
7. Bg5 {[%clk 0:03:00.9]} 7... h6 {[%clk 0:02:56.5]} 8. Bh4 {[%clk 0:03:01.1]}
8... b6 {[%clk 0:02:56.1]} 9. e3 {[%clk 0:03:01]} 9... Bb7 {[%clk 0:02:56.1]}
10. Be2 {[%clk 0:03:01.4]} 10... Qe7 {[%clk 0:02:53.8]} 11. O-O {[%clk
0:03:00.9]} 11... g5 {[%clk 0:02:52.8]} 12. Bg3 {[%clk 0:03:01]} 12... Ne4
{[%clk 0:02:42]} 13. Nd2 {[%clk 0:03:00.6]} 13... Nxg3 {[%clk 0:02:37.5]} 14.
fxg3 {[%clk 0:03:00.5]} 14... f5 {[%clk 0:02:29.8]} 15. Bh5+ {[%clk 0:02:59.3]}
15... Kd8 {[%clk 0:02:19]} 16. e4 {[%clk 0:02:31.7]} 16... Rf8 {[%clk
0:02:13.9]} 17. exf5 {[%clk 0:02:16.3]} 17... Rxf5 {[%clk 0:02:10]} 18. Rxf5
{[%clk 0:02:10.8]} 18... exf5 {[%clk 0:02:09.7]} 19. Qf1 {[%clk 0:01:58.5]}
19... Qe3+ {[%clk 0:02:00.1]} 20. Qf2 {[%clk 0:01:58.5]} 20... Qxf2+ {[%clk
0:01:59.6]} 21. Kxf2 {[%clk 0:01:59.4]} 21... Nf6 {[%clk 0:01:58.9]} 22. Bf3
{[%clk 0:01:58.8]} 22... Bxf3 {[%clk 0:01:57.4]} 23. gxf3 {[%clk 0:01:57.9]}
23... Kd7 {[%clk 0:01:56.8]} 24. Re1 {[%clk 0:01:54.5]} 24... c6 {[%clk
0:01:42.5]} 25. h3 {[%clk 0:01:15.3]} 25... b5 {[%clk 0:01:39.1]} 26. cxb5
{[%clk 0:01:13.2]} 26... cxb5 {[%clk 0:01:39]} 27. Rc1 {[%clk 0:01:11.7]} 27...
Nd5 {[%clk 0:01:25]} 28. Nf1 {[%clk 0:01:01.8]} 28... Re8 {[%clk 0:01:23.5]} 29.
Rc2 {[%clk 0:00:52.6]} 29... f4 {[%clk 0:01:20.3]} 30. g4 {[%clk 0:00:41.8]}
30... Ne3 {[%clk 0:01:14.6]} 31. Nxe3 {[%clk 0:00:34.4]} 31... Rxe3 {[%clk
0:01:14.5]} 32. Rc3 {[%clk 0:00:20]} 32... Rxc3 {[%clk 0:01:14.1]} 33. bxc3
{[%clk 0:00:20.9]} 33... Kc6 {[%clk 0:01:14.4]} 34. Ke2 {[%clk 0:00:21]} 34...
Kd5 {[%clk 0:01:12]} 35. Kd3 {[%clk 0:00:21.2]} 35... a6 {[%clk 0:01:11.8]} 36.
Kd2 {[%clk 0:00:20.8]} 36... Kc4 {[%clk 0:01:11.9]} 37. Kc2 {[%clk 0:00:21.1]}
37... d5 {[%clk 0:01:05]} 38. Kb2 {[%clk 0:00:18.5]} 38... Kd3 {[%clk
0:01:04.7]} 39. Kb3 {[%clk 0:00:18.7]} 39... Ke3 {[%clk 0:01:04.5]} 40. Kb4
{[%clk 0:00:18]} 40... Kxf3 {[%clk 0:01:04]} 41. Ka5 {[%clk 0:00:17.2]} 41...
Ke3 {[%clk 0:01:01.4]} 42. Kxa6 {[%clk 0:00:18.1]} 42... f3 {[%clk 0:01:01.3]}
43. Kxb5 {[%clk 0:00:19]} 43... f2 {[%clk 0:01:01.6]} 44. a4 {[%clk 0:00:19.9]}
44... f1=Q+ {[%clk 0:01:01.6]} 45. Kb6 {[%clk 0:00:20.3]} 45... Qb1+ {[%clk
0:00:56.9]} 46. Kc5 {[%clk 0:00:19.5]} 46... Qa2 {[%clk 0:00:56.2]} 0-1

[Event "*** SCC Grand Prix: Titled Tuesday Blitz"]
[Site "Chess.com"]
[Date "2020.09.29"]
[Round "7"]
[White "ChelsieMonica"]
[Black "KaspMagAlpha"]
[Result "1-0"]
[WhiteElo "2368"]
[BlackElo "2244"]
[TimeControl "180+1"]
[EndTime "11:15:20 PDT"]
[Termination "ChelsieMonica won on time"]

1. e4 {[%clk 0:03:00.9]} 1... c5 {[%clk 0:02:41.1]} 2. Nf3 {[%clk 0:03:00.6]}
2... e6 {[%clk 0:02:33.3]} 3. d4 {[%clk 0:02:57.5]} 3... cxd4 {[%clk 0:02:32.8]}
4. Nxd4 {[%clk 0:02:58.4]} 4... a6 {[%clk 0:02:32.7]} 5. c3 {[%clk 0:02:58.3]}
5... b5 {[%clk 0:02:30.2]} 6. Bd3 {[%clk 0:02:58.5]} 6... Bb7 {[%clk 0:02:30.2]}
7. O-O {[%clk 0:02:59.1]} 7... d5 {[%clk 0:02:29.6]} 8. e5 {[%clk 0:02:59.3]}
8... Nd7 {[%clk 0:02:29.4]} 9. f4 {[%clk 0:02:59.4]} 9... Ne7 {[%clk 0:02:28.2]}
10. f5 {[%clk 0:02:57.7]} 10... exf5 {[%clk 0:02:27.5]} 11. e6 {[%clk
0:02:57.2]} 11... fxe6 {[%clk 0:02:23.5]} 12. Nxe6 {[%clk 0:02:57.5]} 12... Qb6+
{[%clk 0:02:23.2]} 13. Nd4 {[%clk 0:02:58.4]} 13... g6 {[%clk 0:02:21.1]} 14.
Kh1 {[%clk 0:02:57]} 14... Bg7 {[%clk 0:02:17.9]} 15. Bg5 {[%clk 0:02:56.6]}
15... h6 {[%clk 0:02:11]} 16. Bxe7 {[%clk 0:02:48.1]} 16... Kxe7 {[%clk
0:02:10.3]} 17. Re1+ {[%clk 0:02:30.4]} 17... Ne5 {[%clk 0:02:04.8]} 18. Bxf5
{[%clk 0:02:27.2]} 18... Rhe8 {[%clk 0:01:57.1]} 19. Bh3 {[%clk 0:02:12]} 19...
Kf8 {[%clk 0:01:50.8]} 20. Nd2 {[%clk 0:01:58.5]} 20... Bc8 {[%clk 0:01:49.4]}
21. Bxc8 {[%clk 0:01:49.9]} 21... Raxc8 {[%clk 0:01:48.7]} 22. N2f3 {[%clk
0:01:49.7]} 22... Nxf3 {[%clk 0:01:47.8]} 23. Qxf3+ {[%clk 0:01:50.6]} 23... Kg8
{[%clk 0:01:47.3]} 24. Qxd5+ {[%clk 0:01:50.4]} 24... Kh7 {[%clk 0:01:47.1]} 25.
Ne6 {[%clk 0:01:22.6]} 25... Qf2 {[%clk 0:01:27.2]} 26. Qd7 {[%clk 0:01:13.5]}
26... Rxe6 {[%clk 0:01:09.3]} 27. Qxe6 {[%clk 0:01:08.3]} 27... Rf8 {[%clk
0:01:08]} 28. Rad1 {[%clk 0:01:02.4]} 28... Qxb2 {[%clk 0:01:05.1]} 29. Rd7
{[%clk 0:00:59.3]} 29... Qxc3 {[%clk 0:01:01.8]} 30. h3 {[%clk 0:00:57.7]} 30...
h5 {[%clk 0:00:53.4]} 31. Qe7 {[%clk 0:00:55.4]} 31... Rf2 {[%clk 0:00:47.2]}
32. Re5 {[%clk 0:00:47.7]} 32... Rf1+ {[%clk 0:00:11.9]} 33. Kh2 {[%clk
0:00:47.3]} 33... Qxe5+ {[%clk 0:00:01.3]} 34. Qxe5 {[%clk 0:00:48.2]} 1-0